bitfinex/quotes_ETHUSD_20250822
["timestamp","ask_amount","ask_price","bid_price","bid_amount"]
[1755874232121,4.511,4639.2,4637.2,1.80659932]
[1755874232477,1.657,4639.4,4637.7,0.66]
[1755874232478,4.511,4639.3,4637.7,0.66]
[1755874232653,1.657,4639.4,4638.0,3.66]
[1755874233007,1.657,4639.4,4637.3,0.4605]
[1755874233219,0.4745,4639.3,4637.2,3.0]
[1755874233419,0.21315,4639.2,4637.3,1.58147403]
[1755874233618,5.6555,4639.1,4636.9,0.16075084]
[1755874233823,5.181,4639.1,4636.6,0.02256752]
[1755874234138,0.108,4637.9,4637.3,0.108]
[1755874234340,1.658,4637.8,4637.3,0.108]
[1755874234851,1.658,4638.8,4637.4,1.1420638]
[1755874235024,1.658,4638.7,4638.3,0.108]
[1755874235222,1.658,4638.7,4637.4,3.23055351]
[1755874235223,1.658,4638.9,4638.0,0.66]
[1755874235426,1.658,4639.0,4638.7,0.108]
[1755874235658,1.658,4639.0,4638.1,0.66]
[1755874235871,1.658,4639.9,4639.0,2.26362958]
[1755874236027,1.658,4639.9,4638.2,0.4605]
[1755874236245,1.658,4639.9,4639.6,0.108]
[1755874237182,2.1325,4639.9,4639.2,0.108]
[1755874237486,2.1325,4639.9,4639.0,0.108]
[1755874237487,0.108,4639.6,4639.0,0.108]
[1755874237679,0.4745,4639.8,4638.0,14.97082832]
[1755874237831,0.4745,4639.8,4638.8,0.108]
[1755874238031,0.108,4639.5,4638.8,0.108]
[1755874238229,0.21325,4639.8,4639.1,0.108]
[1755874238230,0.32125,4639.8,4639.1,0.108]
[1755874238546,0.1072,4639.4,4638.8,0.108]
[1755874238745,1.658,4639.9,4638.7,0.66]
[1755874239067,1.658,4639.9,4639.3,0.66]
[1755874239267,1.658,4639.9,4639.8,0.108]
[1755874239439,1.658,4639.9,4638.9,0.66]
[1755874239640,1.658,4639.9,4639.8,0.108]
[1755874240471,1.658,4639.9,4639.8,0.27124698]
[1755874240670,2.1131,4639.9,4639.8,0.27124698]
[1755874240838,2.1131,4639.9,4639.8,0.16324698]
[1755874241040,2.1131,4639.9,4637.9,3.0]
[1755874241261,2.1131,4639.9,4638.0,1.62681403]
[1755874241541,1.658,4639.9,4638.2,0.66]
[1755874241754,1.658,4639.9,4638.3,0.02155962]
[1755874241953,1.658,4639.9,4638.7,12.81474032]
[1755874242137,1.658,4639.9,4638.8,0.4534]
[1755874242352,1.658,4639.9,4639.0,0.66]
[1755874242562,1.658,4639.9,4638.9,2.15567942]
[1755874242772,1.658,4639.9,4639.0,2.15562596]
[1755874242973,1.658,4639.9,4639.1,2.81558496]
[1755874243173,1.658,4639.9,4638.8,0.66]
[1755874243336,1.658,4639.9,4639.0,2.15559189]
[1755874243674,1.658,4639.9,4637.9,3.0]
[1755874243834,0.4551,4639.8,4638.1,2.15601283]
[1755874244038,1.658,4639.9,4637.8,13.26814032]
[1755874244500,1.658,4639.9,4638.7,2.15575236]
[1755874244774,1.658,4639.9,4638.9,0.66]
[1755874245157,1.658,4639.9,4638.9,2.05281403]
[1755874245345,1.658,4639.9,4639.0,0.66]
[1755874245547,1.658,4639.9,4639.1,0.4749559]
[1755874245745,1.658,4639.9,4639.4,0.66]
[1755874246149,1.658,4639.9,4639.3,2.15545686]
[1755874246150,1.658,4639.9,4639.2,0.66]
[1755874246340,1.658,4639.9,4639.5,0.66]
[1755874246770,1.658,4639.9,4639.1,0.4534]
[1755874246972,1.658,4639.9,4639.2,0.77134]
[1755874247179,1.679,4640.8,4639.9,0.66]
[1755874247476,0.022,4640.8,4640.7,2.81484732]
[1755874247654,0.022,4640.8,4640.7,3.26824732]
[1755874248053,0.022,4640.8,4640.7,3.37470176]
[1755874248262,0.002,4641.7,4641.2,2.81461518]
[1755874248661,0.002,4641.7,4641.2,3.26801518]
[1755874248874,0.002,4641.7,4641.2,2.81461518]
[1755874249181,0.002,4641.7,4641.2,3.28956133]
[1755874249891,0.002,4641.7,4641.6,0.66]
[1755874250174,2.11563556,4644.5,4642.7,2.81391905]
[1755874250379,0.46243154,4644.4,4643.6,2.15348612]
[1755874250545,0.00353556,4644.5,4643.7,0.02153455]
[1755874250739,0.00273556,4644.5,4644.4,2.81313065]
[1755874250976,0.00273556,4644.5,4644.4,3.26653065]
[1755874251308,0.02,4645.8,4644.4,0.74064832]
[1755874251576,0.128,4645.8,4644.4,0.26571702]
[1755874251776,0.4551,4644.7,4644.4,0.15771702]
[1755874251978,0.4551,4644.6,4643.2,2.15367681]
[1755874252276,0.4551,4644.6,4642.4,4.9454]
[1755874252277,0.4551,4644.6,4642.9,0.15867376]
[1755874252477,0.4551,4644.6,4640.7,0.55985444]
[1755874252778,0.4551,4644.6,4641.4,12.81474032]
[1755874253079,0.337097,4644.4,4641.5,1.75641878]
[1755874253276,0.337097,4644.4,4642.3,12.81474032]
[1755874253477,0.337097,4644.4,4642.5,0.66]
[1755874253676,0.022,4645.8,4644.3,2.15316378]
[1755874253677,1.679,4645.8,4644.3,2.15316378]
[1755874253875,2.01602255,4645.8,4644.1,2.15323085]
[1755874254176,1.679,4645.8,4643.6,3.0]
[1755874254362,0.4551,4645.0,4643.0,0.66]
[1755874255176,0.4551,4645.0,4643.1,2.15372345]
[1755874255377,2.1121,4644.7,4642.9,0.16545096]
[1755874255579,0.4551,4644.6,4641.6,12.81474032]
[1755874255755,0.33709255,4644.3,4640.8,4.487]
[1755874255956,0.4551,4644.2,4643.8,0.02]
[1755874256157,4.487,4644.1,4643.8,0.02]
[1755874256358,4.9421,4644.1,4643.8,0.18475587]
[1755874256679,4.9421,4644.1,4643.8,0.02]
[1755874256680,0.4551,4644.0,4643.8,0.02]
[1755874256850,0.94931,4644.0,4643.8,0.02]
[1755874257050,0.49421,4644.0,4643.8,0.02]
[1755874257364,0.4551,4643.9,4643.8,0.02]
[1755874257684,1.657,4644.3,4643.8,0.18512781]
[1755874257852,1.657,4644.3,4643.8,0.02]
[1755874258055,0.4551,4645.3,4643.8,0.02]
[1755874258251,1.657,4645.2,4643.8,0.02]
[1755874259151,1.657,4645.4,4643.8,0.02]
[1755874259351,1.657,4645.4,4644.1,2.15326849]
[1755874259579,1.657,4645.4,4644.4,2.15312669]
[1755874259783,1.657,4645.4,4644.2,0.02153223]
[1755874259784,1.657,4645.4,4643.9,1.56481785]
[1755874259980,0.4551,4644.9,4643.8,0.18288561]
[1755874260353,1.657,4645.4,4643.8,0.18288561]
[1755874260354,0.4551,4644.7,4643.8,0.18288561]
[1755874260563,4.482,4644.6,4643.8,0.18288561]
[1755874260748,4.97771,4644.5,4643.8,10.18288561]
[1755874260969,0.83279376,4644.5,4643.8,10.16288561]
[1755874261298,30.0,4644.4,4642.8,0.02]
[1755874261472,3.0,4644.2,4642.8,0.02]
[1755874261783,0.108,4642.9,4642.8,0.02]
[1755874262153,4.481,4643.7,4642.8,0.02]
[1755874262363,0.108,4643.3,4642.8,0.02]
[1755874262581,0.108,4642.9,4642.8,0.02]
[1755874262982,0.5623,4642.9,4642.4,0.16389966]
[1755874263183,0.5623,4642.9,4641.8,0.02]
[1755874263184,0.108,4642.5,4641.8,0.02]
[1755874263428,1.656,4643.2,4642.2,0.108]
[1755874263572,0.50278181,4643.1,4641.8,0.02]
[1755874263767,0.95788181,4643.1,4641.8,0.02]
[1755874264021,0.95788181,4643.1,4641.8,0.17874372]
[1755874264174,0.50278181,4643.1,4641.8,0.17874372]
[1755874264378,0.50278181,4643.1,4641.8,0.02]
[1755874264621,0.66377818,4643.0,4641.8,0.18241625]
[1755874264831,0.50278181,4643.1,4641.9,0.0215429]
[1755874264832,0.33718181,4643.1,4641.9,0.0215429]
[1755874264970,0.33718181,4643.1,4642.2,0.108]
[1755874264971,0.108,4642.9,4642.2,0.108]
[1755874265178,0.33718181,4643.1,4642.5,0.108]
[1755874265374,0.108,4642.5,4641.8,0.29018975]
[1755874265720,0.108,4642.5,4642.3,0.001]
[1755874266076,0.4551,4642.4,4642.3,0.001]
[1755874266411,0.4551,4642.4,4641.8,0.02]
[1755874266719,0.4551,4642.4,4640.8,0.02]
[1755874266720,0.66,4642.2,4640.8,0.02]
[1755874266927,2.21521,4642.1,4640.8,0.02]
[1755874267229,4.477,4642.0,4640.8,0.02]
[1755874267516,2.21521,4642.1,4640.8,0.17918249]
[1755874267677,2.21521,4642.1,4640.8,0.02]
[1755874267877,1.656,4642.1,4640.8,0.02]
[1755874268696,6.132,4642.1,4640.8,0.02]
[1755874269107,4.476,4642.0,4640.8,0.02]
[1755874269279,4.476,4641.9,4640.8,0.02]
[1755874269619,6.131,4642.1,4640.9,0.4463]
[1755874269778,0.438,4642.0,4640.8,0.18083305]
[1755874270281,0.438,4642.0,4640.8,0.02]
[1755874270282,0.3372732,4641.8,4640.8,0.02]
[1755874270486,4.474,4641.7,4640.8,0.02]
[1755874270682,0.438,4641.6,4640.8,0.02]
[1755874270891,4.474,4641.5,4640.8,0.02]
[1755874271121,0.4912,4641.4,4640.8,0.02]
[1755874271355,0.9292,4641.4,4640.8,0.02]
[1755874271503,5.134,4641.3,4639.8,0.021]
[1755874271702,4.473,4641.2,4639.8,0.021]
[1755874271903,4.473,4641.2,4639.8,0.18410131]
[1755874271904,0.438,4641.2,4639.8,0.18410131]
[1755874272105,0.438,4641.2,4639.8,0.021]
[1755874272482,4.474,4641.1,4639.8,0.021]
[1755874272683,4.9642,4641.0,4639.8,0.18492677]
[1755874272884,1.657,4640.9,4639.8,0.021]
[1755874273086,4.473,4640.8,4639.8,0.021]
[1755874273427,4.473,4640.7,4639.8,0.021]
[1755874273592,4.911,4640.7,4639.8,0.021]
[1755874273786,1.0948,4640.6,4639.8,0.021]
[1755874274186,0.438,4640.5,4639.8,0.021]
[1755874274425,4.472,4640.4,4639.8,0.021]
[1755874274722,4.472,4640.3,4639.8,0.021]
[1755874275336,4.4712,4640.3,4639.8,0.021]
[1755874275498,0.33743647,4640.5,4639.8,0.021]
[1755874275707,4.472,4640.4,4639.8,0.021]
[1755874276028,4.471,4640.3,4639.8,0.021]
[1755874276209,5.178,4640.7,4639.8,0.021]
[1755874276416,0.108,4640.1,4639.8,0.021]
[1755874276790,0.438,4640.0,4638.8,0.021]
[1755874277002,0.108,4638.9,4638.8,0.021]
[1755874277336,1.765,4638.9,4638.8,0.021]
[1755874277516,1.657,4638.9,4638.8,0.18641912]
[1755874277732,6.235,4638.9,4638.8,0.021]
[1755874277922,1.765,4638.9,4638.8,0.021]
[1755874278648,6.235,4638.9,4638.8,0.021]
[1755874278804,6.234,4638.9,4638.8,0.021]
[1755874279004,6.2995,4640.7,4638.8,0.021]
[1755874279005,5.178,4640.7,4638.8,0.62829952]
[1755874279245,0.108,4639.7,4639.1,0.108]
[1755874279447,4.469,4639.6,4639.1,0.108]
[1755874279745,0.108,4639.3,4638.8,0.18684549]
[1755874279904,0.108,4639.5,4638.9,0.57585683]
[1755874280250,1.657,4640.0,4639.0,0.4463]
[1755874280540,0.002,4639.8,4638.8,0.18684549]
[1755874281245,4.3936,4639.7,4638.8,0.18684549]
[1755874281451,0.002,4639.8,4638.9,0.02155683]
[1755874281744,0.002,4639.8,4638.8,0.18684549]
[1755874282040,0.44,4639.8,4638.8,0.18684549]
[1755874282271,0.2097,4639.7,4638.8,0.18684549]
[1755874282554,0.66,4639.5,4637.8,0.02]
[1755874282755,0.66,4639.3,4637.8,0.02]
[1755874282910,2.49317757,4639.1,4637.8,0.02]
[1755874283109,0.24931776,4639.0,4637.8,0.02]
[1755874283454,6.123,4638.9,4637.8,0.02]
[1755874283654,1.657,4638.9,4637.8,0.02]
[1755874283950,4.466,4638.8,4637.8,0.021]
[1755874284527,0.438,4638.7,4637.8,0.021]
[1755874284857,0.66,4638.6,4637.8,0.021]
[1755874285020,0.66,4638.6,4637.3,0.001]
[1755874285021,0.80573182,4638.5,4637.3,0.001]
[1755874285224,0.438,4638.5,4637.3,0.001]
[1755874285554,4.903,4638.4,4637.3,0.001]
[1755874285709,0.438,4638.4,4637.3,0.001]
[1755874285906,4.465,4638.3,4637.3,0.001]
[1755874286218,4.465,4638.2,4637.3,0.001]
[1755874286526,1.16210732,4641.0,4637.3,0.001]
[1755874286842,0.438,4638.5,4637.3,0.001]
[1755874287013,0.66,4638.3,4637.3,0.001]
[1755874287214,0.66,4638.3,4636.9,0.001]
[1755874287215,0.66,4638.1,4636.9,0.001]
[1755874287415,0.66,4638.1,4636.8,0.02]
[1755874287416,0.66,4637.5,4636.8,0.02]
[1755874287642,0.6592,4637.3,4636.8,0.02]
[1755874287816,5.04812,4637.2,4636.8,0.01905957]
[1755874288212,2.096,4637.1,4636.8,0.01905957]
[1755874288418,1.658,4637.1,4636.8,0.01905957]
[1755874288638,4.463,4637.0,4636.8,0.01905957]
[1755874289120,1.658,4637.1,4636.9,0.4463]
[1755874289457,4.463,4637.7,4637.0,0.4463]
[1755874289617,6.121,4638.0,4637.0,0.4463]
[1755874289958,0.02,4638.8,4638.0,3.1712]
[1755874290164,0.02,4638.8,4637.1,0.34653596]
[1755874290465,0.108,4638.4,4637.7,2.7105378]
[1755874290625,4.463,4638.7,4638.0,2.15609876]
[1755874290831,4.571,4638.7,4638.2,2.15600361]
[1755874291030,4.463,4638.7,4637.7,0.4463]
[1755874291216,4.463,4638.7,4637.9,2.26410488]
[1755874291217,0.108,4638.5,4637.9,2.26410488]
[1755874291416,0.108,4638.5,4637.9,0.108]
[1755874291616,0.4591,4638.5,4636.9,2.60290959]
[1755874291817,0.108,4637.7,4636.8,0.01905957]
[1755874292057,0.108,4637.7,4636.8,0.12705957]
[1755874292058,0.108,4637.4,4636.8,0.12705957]
[1755874292562,0.108,4638.2,4637.3,12.92274032]
[1755874292763,0.108,4638.2,4637.5,0.66]
[1755874293072,0.02,4638.8,4637.7,3.0]
[1755874293279,0.02,4638.8,4637.3,12.81474032]
[1755874293280,0.02,4638.8,4637.8,0.79093]
[1755874293461,0.02,4638.8,4638.7,2.8157764]
[1755874293770,4.482,4640.8,4639.1,12.81474032]
[1755874293971,0.35939305,4640.8,4639.2,7.0199]
[1755874294276,0.022,4640.8,4639.8,2.15522855]
[1755874294459,0.022,4640.8,4640.7,2.15484732]
[1755874294663,0.02,4641.8,4640.2,0.68155079]
[1755874294875,0.02,4641.8,4641.0,12.81474032]
[1755874295249,0.02,4641.8,4640.1,0.4463]
[1755874295944,0.02,4641.8,4640.2,9.44824779]
[1755874296242,0.02,4641.8,4640.8,2.15480089]
[1755874296442,0.02,4641.8,4641.2,2.15460795]
[1755874296632,0.02,4641.8,4640.7,13.26104032]
[1755874296832,0.02,4641.8,4640.2,0.10602927]
[1755874297063,0.02,4641.8,4639.9,0.4463]
[1755874297270,0.02,4641.8,4640.7,12.81474032]
[1755874297433,0.02,4641.8,4641.7,2.15438309]
[1755874297633,1.658,4642.8,4641.6,12.81474032]
[1755874297850,1.658,4642.8,4641.7,0.4463]
[1755874298035,1.658,4642.8,4641.7,2.60068302]
[1755874298259,1.658,4642.8,4641.7,0.99643957]
[1755874298461,1.658,4642.8,4642.0,2.15423937]
[1755874298775,0.02,4644.8,4642.9,0.66]
[1755874298960,0.02,4644.8,4642.9,3.66]
[1755874299133,0.02,4644.8,4643.2,2.15368053]
[1755874299475,0.02,4644.8,4643.7,2.15345521]
[1755874299874,0.0192,4643.8,4643.7,0.4522]
[1755874300944,0.0192,4643.8,4643.7,2.62718976]
[1755874301139,0.02,4644.8,4644.2,2.15322305]
[1755874301473,0.02,4644.8,4644.3,0.02153177]
[1755874301681,0.02,4644.8,4644.7,2.15299158]
[1755874301982,0.02,4644.8,4644.6,12.81474032]
[1755874302287,0.02,4644.8,4644.6,0.4522]
[1755874302580,0.02,4644.8,4644.4,0.15975438]
[1755874302748,0.02,4644.8,4644.3,12.81474032]
[1755874302938,0.02,4644.8,4644.5,0.108]
[1755874303134,0.02,4644.8,4644.7,2.15299158]
[1755874303568,0.02,4644.8,4644.7,2.60519158]
[1755874303889,0.02,4644.8,4644.7,0.4522]
[1755874304077,0.02,4644.8,4644.5,2.28260997]
[1755874304289,0.02,4644.8,4644.7,0.4522]
[1755874304437,1.657,4646.6,4645.7,2.15252814]
[1755874304639,1.657,4646.6,4645.2,12.81474032]
[1755874304640,0.108,4646.6,4645.2,12.81474032]
[1755874304863,0.108,4646.6,4645.7,0.5602]
[1755874305045,0.108,4646.6,4645.7,2.71272814]
[1755874305379,0.108,4646.6,4645.8,0.66]
[1755874305748,1.676,4647.8,4645.8,2.15246676]
[1755874306089,0.1072,4647.7,4646.5,0.108]
[1755874306237,0.1072,4647.7,4646.7,2.1520649]
[1755874306441,0.1072,4647.7,4646.6,0.4522]
[1755874306651,0.1072,4647.7,4645.8,0.66]
[1755874306652,0.1072,4647.7,4644.4,0.16067258]
[1755874306877,1.676,4647.8,4643.8,0.4522]
[1755874306878,1.656,4646.7,4643.8,0.4522]
[1755874307195,4.65903,4646.6,4644.4,0.4522]
[1755874307480,4.445,4646.5,4644.6,12.81474032]
[1755874307914,1.656,4646.7,4644.6,12.81474032]
[1755874308066,0.02,4646.8,4645.7,2.15251275]
[1755874308269,0.02,4646.8,4646.7,2.1520649]
[1755874308769,0.02,4646.8,4646.7,2.6042649]
[1755874308968,0.02,4646.8,4645.8,0.4522]
[1755874309365,0.02,4646.8,4645.9,0.02152435]
[1755874309616,0.02,4646.8,4645.8,0.16141969]
[1755874309971,0.02,4646.8,4645.5,2.15259617]
[1755874310211,0.02,4646.8,4644.2,0.4522]
[1755874310370,0.02,4646.8,4644.3,0.02153177]
[1755874310708,5.24223402,4646.7,4644.2,0.4522]
[1755874311008,2.1812234,4646.6,4644.8,12.81474032]
[1755874311206,6.096,4646.6,4644.8,12.81474032]
[1755874311387,1.655,4646.6,4644.9,3.0]
[1755874311576,0.02,4646.8,4645.8,12.81474032]
[1755874311577,0.35692742,4646.8,4645.8,12.81474032]
[1755874311765,0.02,4646.8,4645.8,12.81474032]
[1755874312171,0.0192,4646.8,4645.9,0.4522]
[1755874312371,0.0192,4646.8,4645.5,3.4522]
[1755874312700,0.0192,4646.8,4645.6,0.02152574]
[1755874313069,0.0192,4646.8,4645.7,2.1524867]
[1755874313268,0.0192,4646.8,4645.8,0.4522]
[1755874313491,0.0192,4646.8,4644.8,4.439]
[1755874313492,0.0192,4646.8,4644.3,0.16533864]
[1755874313690,0.0192,4646.8,4643.8,0.02]
[1755874313691,0.4643,4646.7,4643.8,0.02]
[1755874313891,6.093,4646.6,4643.9,0.47373362]
[1755874314098,0.65765,4646.5,4644.6,0.001]
[1755874314472,4.437,4646.4,4644.6,0.001]
[1755874314803,1.657,4646.6,4644.6,0.001]
[1755874315003,2.1213,4646.6,4644.6,0.001]
[1755874315713,0.66,4646.4,4644.6,0.001]
[1755874316015,3.0,4646.2,4644.6,0.001]
[1755874316315,0.7436,4646.1,4644.6,0.001]
[1755874316617,4.436,4646.0,4644.6,0.001]
[1755874316803,0.108,4644.7,4644.6,0.001]
[1755874317115,1.763,4644.7,4644.6,0.001]
[1755874317615,2.2273,4644.7,4644.1,0.16354716]
[1755874317820,2.1193,4644.7,4643.8,0.02]
[1755874317986,0.108,4643.9,4643.8,0.02]
[1755874318184,4.64593,4644.6,4643.8,0.02]
[1755874318409,4.434,4644.6,4643.8,0.18417369]
[1755874318612,4.434,4644.6,4643.8,0.02]
[1755874318820,1.655,4644.7,4643.8,0.02]
[1755874319616,1.655,4644.7,4643.8,0.18260505]
[1755874320300,1.655,4646.5,4644.3,3.0]
[1755874320623,1.655,4646.5,4645.1,3.66]
[1755874320790,0.002,4646.6,4645.5,0.66]
[1755874321117,0.002,4646.6,4644.4,1.64747403]
[1755874321330,0.002,4646.6,4644.7,0.66]
[1755874321625,0.002,4646.6,4644.1,3.0]
[1755874321626,0.002,4646.6,4645.1,0.66]
[1755874321786,0.002,4646.6,4645.2,0.02152759]
[1755874321984,0.002,4646.6,4645.3,0.4522]
[1755874322199,0.002,4646.6,4646.3,2.15220508]
[1755874322416,0.002,4646.6,4646.5,2.15215753]
[1755874322613,0.002,4646.6,4646.4,0.4522]
[1755874322986,0.02,4647.8,4646.7,2.8120649]
[1755874323184,0.02,4647.8,4646.7,5.8120649]
[1755874323385,0.02,4647.8,4646.7,0.4522]
[1755874323692,0.02,4647.8,4646.0,5.81238915]
[1755874323693,0.02,4647.8,4646.8,0.71263433]
[1755874323897,0.02,4647.8,4646.8,0.4522]
[1755874324195,0.02,4647.8,4646.9,0.4522]
[1755874324400,0.02,4647.8,4647.1,0.66]
[1755874324926,0.02,4647.8,4646.1,0.4522]
[1755874325127,0.02,4647.8,4646.2,2.1522965]
[1755874325428,0.02,4647.8,4647.0,2.15189598]
[1755874325611,0.02,4647.8,4646.6,0.66]
[1755874325786,0.02,4647.8,4646.9,2.15197228]
[1755874325981,0.02,4647.8,4647.5,2.15169375]
[1755874326218,0.02,4647.8,4646.7,3.66]
[1755874326404,0.02,4647.8,4646.8,1.52342]
[1755874326594,0.02,4647.8,4647.0,2.15192597]
[1755874326793,0.02,4647.8,4647.0,3.0]
[1755874327022,0.02,4647.8,4647.4,2.1517375]
[1755874327228,0.02,4647.8,4647.5,0.02151694]
[1755874327438,0.02,4647.8,4646.6,0.02152111]
[1755874327635,0.02,4647.8,4646.3,0.4522]
[1755874327636,0.02,4647.8,4646.7,0.4522]
[1755874327790,0.02,4647.8,4646.7,0.71263781]
[1755874328139,0.02,4647.8,4647.7,0.1072]
[1755874328330,0.02,4647.8,4646.7,2.1520373]
[1755874328620,0.02,4647.8,4646.4,2.15218811]
[1755874328621,0.01906434,4647.8,4646.8,0.4327]
[1755874328927,0.01906434,4647.8,4646.6,2.15211054]
[1755874329121,0.01906434,4647.8,4646.3,5.15224108]
[1755874329419,0.01906434,4647.8,4646.4,0.55849411]
[1755874329821,0.01906434,4647.8,4646.2,0.4327]
[1755874330408,0.01906434,4647.8,4645.9,12.9779346]
[1755874330734,0.01906434,4647.8,4645.9,0.16319428]
[1755874330930,0.01906434,4647.8,4645.8,0.04]
[1755874330931,0.4706,4647.7,4645.8,0.04]
[1755874331095,0.01758896,4647.8,4646.0,0.4327]
[1755874331530,0.48818896,4647.8,4645.9,0.15803448]
[1755874331741,0.82505954,4647.8,4645.8,0.04]
[1755874332034,4.8946,4647.7,4645.8,0.18398986]
[1755874332245,0.4706,4647.6,4645.9,30.0]
[1755874332425,0.4706,4647.6,4645.8,0.02]
[1755874332426,1.655,4647.5,4645.8,0.02]
[1755874332601,6.3437272,4647.4,4645.8,0.02]
[1755874332931,0.33693527,4647.1,4645.8,0.17975474]
[1755874333099,4.423,4647.0,4645.8,0.02]
[1755874333501,0.33693527,4647.1,4645.8,0.02]
[1755874333502,1.99193527,4647.1,4645.8,0.02]
[1755874333701,1.99193527,4647.1,4645.8,0.18356958]
[1755874333702,1.655,4647.1,4645.8,0.18356958]
[1755874333945,1.8205,4647.1,4645.8,0.18356958]
[1755874334131,0.4706,4647.0,4645.8,0.18356958]
[1755874334308,1.655,4647.1,4645.8,0.18356958]
[1755874334510,1.655,4647.1,4645.9,0.02152435]
[1755874334711,1.655,4647.1,4645.8,0.18356958]
[1755874335343,4.8926,4647.0,4645.8,0.18356958]
[1755874335500,4.422,4646.9,4645.8,0.18356958]
[1755874335833,1.655,4646.9,4645.9,0.02152435]
[1755874336203,1.655,4646.9,4645.8,2.33604095]
[1755874336405,1.655,4646.9,4645.9,0.4327]
[1755874336600,1.6542,4646.9,4646.2,3.0]
[1755874336801,0.01758896,4647.8,4646.6,13.646851]
[1755874336802,1.67258896,4647.8,4646.6,13.646851]
[1755874337139,1.67258896,4647.8,4646.7,0.4327]
[1755874337640,0.01758896,4647.8,4646.9,3.0]
[1755874337844,0.01758896,4647.8,4646.8,0.66]
[1755874338046,0.01758896,4647.8,4646.9,0.79456154]
[1755874338341,0.01758896,4647.8,4646.7,0.4327]
[1755874338561,0.12478896,4647.8,4647.2,0.1072]
[1755874339106,0.12478896,4647.8,4645.9,0.66]
[1755874339107,0.12478896,4647.8,4647.0,0.1072]
[1755874339311,0.01758896,4647.8,4646.7,0.108]
[1755874339555,0.01758896,4647.8,4646.2,13.646851]
[1755874339556,0.108,4646.7,4646.2,0.108]
[1755874340061,0.108,4646.7,4645.8,0.18356958]
[1755874340062,1.655,4647.1,4645.8,0.18356958]
[1755874340257,0.108,4646.1,4645.8,0.18356958]
[1755874340412,2.1256,4646.0,4645.8,0.18356958]
[1755874340778,1.655,4646.0,4645.8,0.18356958]
[1755874340920,0.108,4646.1,4645.8,0.18356958]
[1755874341121,0.33692346,4646.8,4645.9,0.45422435]
[1755874341316,0.108,4646.8,4646.2,0.108]
[1755874341614,0.2843,4646.8,4646.2,0.108]
[1755874341850,0.1763,4646.8,4645.8,0.18356958]
[1755874342015,1.655,4646.9,4645.8,0.18356958]
[1755874342219,1.655,4646.9,4645.9,0.02152435]
[1755874342522,1.655,4646.9,4645.8,0.18356958]
[1755874342523,1.655,4646.9,4645.8,0.61626958]
[1755874342724,1.655,4646.9,4646.6,13.646851]
[1755874342924,1.67258896,4647.8,4646.7,0.4327]
[1755874343114,1.67258896,4647.8,4646.8,0.02152018]
[1755874343523,1.67258896,4647.8,4646.8,1.4316273]
[1755874343728,1.67258896,4647.8,4646.9,0.4327]
[1755874343933,1.67258896,4647.8,4647.0,0.68151925]
[1755874344128,0.01758896,4647.8,4647.7,2.15160186]
[1755874344343,0.01758896,4647.8,4647.3,0.4327]
[1755874344644,0.01758896,4647.8,4646.9,3.0]
[1755874344645,0.01758896,4647.8,4647.6,0.4327]
[1755874344847,0.01758896,4647.8,4647.7,0.02151601]
[1755874345024,0.01758896,4647.8,4647.7,0.4327]
[1755874345236,0.01758896,4647.8,4647.7,2.60581787]
[1755874345440,0.01758896,4647.8,4647.7,2.58430186]
[1755874345957,1.655,4648.9,4647.7,0.4327]
[1755874346161,1.655,4648.9,4648.5,2.15123158]
[1755874346657,0.02,4649.8,4648.6,0.66]
[1755874346824,0.003,4651.1,4649.8,2.15059565]
[1755874347023,0.003,4651.1,4649.8,0.61836195]
[1755874347249,4.416,4651.1,4649.8,0.16415565]
[1755874347524,0.4636,4650.8,4649.0,0.4327]
[1755874347965,0.4706,4650.7,4649.0,0.15938631]
[1755874348261,0.02,4650.8,4649.0,0.4327]
[1755874348554,0.02,4650.8,4649.3,0.66]
[1755874348758,0.0192,4650.8,4649.8,3.0]
[1755874348962,0.0192,4650.8,4649.9,0.83227231]
[1755874349134,0.0192,4650.8,4648.0,2.30915092]
[1755874349135,0.0192,4650.8,4649.4,0.4327]
[1755874349332,1.654,4650.7,4649.2,0.4327]
[1755874349560,1.654,4650.7,4650.5,2.15028192]
[1755874349723,1.654,4650.7,4650.6,2.58296018]
[1755874349929,0.0192,4650.8,4650.6,0.4327]
[1755874350226,0.0192,4650.8,4650.7,2.58291394]
[1755874350435,0.0192,4650.8,4650.7,2.84120533]
[1755874350641,0.003,4651.1,4650.7,0.16221847]
[1755874350860,0.003,4651.1,4651.0,2.15007525]
[1755874351076,0.003,4651.1,4651.0,2.604276]
[1755874351359,0.02,4651.8,4651.1,3.0]
[1755874351662,0.02,4651.8,4651.1,0.66]
[1755874351851,0.02,4651.8,4651.7,2.2569517]
[1755874352258,0.02,4651.8,4651.7,2.6896517]
[1755874352454,0.02,4651.8,4651.7,0.1072]
[1755874353024,0.02,4651.8,4651.7,2.1497517]
[1755874353461,0.02,4651.8,4651.7,2.6896517]